{"text_format":"1","workbook":"xlsx","n_sheets":10,"sheets":["Skema 1","Skema 2","Skema 3","Skema 4","Skema 5","Skema 6","Skema 7","Rapport","Rapport SGH","Afstemning af ikke fordelte"],"not_rendered":{"charts":0,"images":0,"macros":1,"external_links":0,"defined_names":23,"comments":0,"pivot_tables":0},"unopened":[],"bounds":{"document_bytes":16777216,"sheet_cells":100000,"rows_first":2000,"rows_last":500,"rows_between":2000,"halvings":0,"cell_chars":16384,"cell_head_chars":4096},"cells_cut":0,"cells_raw":0,"read":"whole","date_system":"1900"}

{"sheet":"Skema 1","index":0,"n_rows":35,"n_cols":9,"rows_kept":35,"cut":false,"hidden":false,"merged":[[1,1,2,8]]}
["Region Midtjylland, psykiatriske sygehuse."]
[null,"Skema 1: Udgifter og indtægter på sygehusene/enhederne, eksklusiv omkostningssted 0001, Fælleskonto. (1.000 kr.)"]
[]
[]
["Sygehus",null,2023,2022,2021,2020,"Δ2022-2023","% afvigelse","Begrundelse"]
["Region Midt, Voksen psykiatrien"]
["Region Midt, Voksen psykiatrien","Hovedart 1: Lønninger",1407463.4835486964,1361997,1283372.5743026398,1225153.7729635399,{"$f":"IF(ISERROR(C7- D7)=TRUE,\"\",C7 - D7)","v":45466.483548696386},{"$f":"IF(ISERROR((((C7- D7)/D7)*100)=TRUE),\"\",IF((((C7- D7)/D7)*100)<-7,FIXED(((C7- D7)/D7)*100, 1,TRUE) &\"%\" & \"▼\",IF((((C7- D7)/D7)*100)>7,FIXED(((C7- D7)/D7)*100, 1,TRUE) &\"%\" &\"▲\",FIXED(((C7- D7)/D7)*100, 1,TRUE)&\"%\")))","v":"3,3%"},"Normale fluktuationer"]
["Region Midt, Voksen psykiatrien","Hovedart 2: Varekøb",31479.273718250261,35831,42900.593854102473,49177.510725259977,-4351.7262817497394,"-12,1%▼","Økonomisk tilbageholdenhed"]
["Region Midt, Voksen psykiatrien","Hovedart 4: Tjenesteydelser m.v. ",321303.73872220278,309617,317285.1748049914,285551.07772362098,11686.738722202776,"3,8%","Normale fluktuationer"]
["Region Midt, Voksen psykiatrien","Hovedart 5: Tilskud og overførsler",-2959.3397812237968,-2519,0,5.7593028831254971,-440.33978122379676,"17,5%▲","Normale fluktuationer"]
["Region Midt, Voksen psykiatrien","Hovedart 6: Finansudgifter",null,null,null,null,0,""]
["Region Midt, Voksen psykiatrien","Hovedart 7: Indtægter",-99135.353949376062,-108210,-113437.74569590273,-116851.06052644399,9074.6460506239382,"-8,4%▼","Normale fluktuationer"]
["Region Midt, Voksen psykiatrien","Hovedart 8: Finansindtægter",null,null,0,0,0,""]
["Region Midt, Voksen psykiatrien","Hovedart 9: Interne udgifter og indtægter",162922.90205006805,149060,135454.76552775138,125361.08274720884,13862.902050068049,"9,3%▲","Normale fluktuationer"]
["Region Midt, Voksen psykiatrien","I alt",{"$f":"SUMIFS((C7:C14),(A7:A14),A15)","v":1821074.7043086176},{"$f":"SUMIFS((D7:D14),(A7:A14),A15)","v":1745776},{"$f":"SUMIFS((E7:E14),(A7:A14),A15)","v":1665575.3627935823},{"$f":"SUMIFS((F7:F14),(A7:A14),A15)","v":1568398.1429360691},75298.704308617627,"4,3%"]
["Region Midt, Børn-unge psykiatrien",null,null,null,null,null,0,""]
["Region Midt, Børn-unge psykiatrien","Hovedart 1: Lønninger",318827.62988130469,320380,319646.52967736148,310834.19477645599,-1552.3701186953112,"-0,5%","Normale fluktuationer"]
["Region Midt, Børn-unge psykiatrien","Hovedart 2: Varekøb",3559.9298017497472,3603,6701.9231358974966,7218.9245147400106,-43.070198250252815,"-1,2%","Økonomisk tilbageholdenhed"]
["Region Midt, Børn-unge psykiatrien","Hovedart 4: Tjenesteydelser m.v. ",25428.575507797435,23881,21287.178725007976,18381.4001763788,1547.5755077974354,"6,5%","Normale fluktuationer"]
["Region Midt, Børn-unge psykiatrien","Hovedart 5: Tilskud og overførsler",-572.35821877620333,-499,0,1.2406971168745,-73.35821877620333,"14,7%▲","Normale fluktuationer"]
["Region Midt, Børn-unge psykiatrien","Hovedart 6: Finansudgifter",null,null,null,null,0,""]
["Region Midt, Børn-unge psykiatrien","Hovedart 7: Indtægter",-5493.2545406239578,-11353,-12522.516314097289,-13704.6077235556,5859.7454593760422,"-51,6%▼","Korrektion bla. Ved mellemregional afregning"]
["Region Midt, Børn-unge psykiatrien","Hovedart 8: Finansindtægter",null,null,0,0,0,""]
["Region Midt, Børn-unge psykiatrien","Hovedart 9: Interne udgifter og indtægter",10838.399239931892,10141,16618.383582248727,15126.4378427911,697.39923993189223,"6,9%","Normale fluktuationer"]
["Region Midt, Børn-unge psykiatrien","I alt",{"$f":"SUMIFS((C7:C24),(A7:A24),A25)","v":352588.92167138361},{"$f":"SUMIFS((D7:D24),(A7:A24),A25)","v":346153},{"$f":"SUMIFS((E7:E24),(A7:A24),A25)","v":351731.49880641839},{"$f":"SUMIFS((F7:F24),(A7:A24),A25)","v":337857.59028392716},6435.9216713836067,"1,9%"]
["Ikke fordelte udgifter i Region Midt, psykiatri",null,null,null,null,null,0,""]
["Ikke fordelte udgifter i Region Midt, psykiatri","Hovedart 1: Lønninger",8695.993559999999,7699,6408.6815500000012,7144.9160199999997,996.99355999999898,"12,9%▲","Normale fluktuationer"]
["Ikke fordelte udgifter i Region Midt, psykiatri","Hovedart 2: Varekøb",139.94936999999993,83,195.82956000000004,199.00771,56.949369999999931,"68,6%▲","Følger af beløbets ringe størrelse så små ændringer giver store udfald"]
["Ikke fordelte udgifter i Region Midt, psykiatri","Hovedart 4: Tjenesteydelser m.v. ",28975.143059999995,21036,-12706.482930000002,-4679.5586400000002,7939.1430599999949,"37,7%▲","Normale fluktuationer"]
["Ikke fordelte udgifter i Region Midt, psykiatri","Hovedart 5: Tilskud og overførsler",7097.0240000000003,6056,3874.6179999999999,0,1041.0240000000003,"17,2%▲","Normale fluktuationer"]
["Ikke fordelte udgifter i Region Midt, psykiatri","Hovedart 6: Finansudgifter",null,null,null,null,0,""]
["Ikke fordelte udgifter i Region Midt, psykiatri","Hovedart 7: Indtægter",-69929.322,-34864,-22573.764090000001,-33097.540150000001,-35065.322,"100,6%▲","Skyldes hovedsageligt en lang række korrektioner, herunder mellemregional afregning. "]
["Ikke fordelte udgifter i Region Midt, psykiatri","Hovedart 8: Finansindtægter",null,null,0,0,0,""]
["Ikke fordelte udgifter i Region Midt, psykiatri","Hovedart 9: Interne udgifter og indtægter",8.7751000000000001,84,465.19888000000003,7.2104999999999997,-75.224900000000005,"-89,6%▼","Følger af beløbets ringe størrelse så små ændringer giver store udfald"]
["Ikke fordelte udgifter i Region Midt, psykiatri","I alt",{"$f":"SUMIFS((C7:C34),(A7:A34),A35)","v":-25012.436910000011},{"$f":"SUMIFS((D7:D34),(A7:A34),A35)","v":94},{"$f":"SUMIFS((E7:E34),(A7:A34),A35)","v":-24335.919030000001},{"$f":"SUMIFS((F7:F34),(A7:A34),A35)","v":-30425.96456},-25106.436910000011,"-26709,0%▼"]

{"sheet":"Skema 2","index":1,"n_rows":35,"n_cols":9,"rows_kept":35,"cut":false,"hidden":false,"merged":[[1,1,2,8]]}
["Region Midtjylland, psykiatriske sygehuse."]
[null,"Skema 2: Fællesudgifter og -indtægter vedrørende sygehusene.\n(1.000 kr.)"]
[]
[]
["Sygehus",null,2023,2022,2021,2020,"Δ2022-2023","% afvigelse","Begrundelse"]
["Region Midt, Voksen psykiatrien"]
["Region Midt, Voksen psykiatrien","Hovedart 1: Lønninger",46743.267966637744,42365,33568.423220955519,37684.792253156404,{"$f":"IF(ISERROR(C7- D7)=TRUE,\"\",C7 - D7)","v":4378.2679666377444},{"$f":"IF(ISERROR((((C7- D7)/D7)*100)=TRUE),\"\",IF((((C7- D7)/D7)*100)<-7,FIXED(((C7- D7)/D7)*100, 1,TRUE) &\"%\" & \"▼\",IF((((C7- D7)/D7)*100)>7,FIXED(((C7- D7)/D7)*100, 1,TRUE) &\"%\" &\"▲\",FIXED(((C7- D7)/D7)*100, 1,TRUE)&\"%\")))","v":"10,3%▲"},"Se bem. fra RM koncern (PJ)"]
["Region Midt, Voksen psykiatrien","Hovedart 2: Varekøb",3252.9835177279451,5315.4992609999999,-2141.0560781547747,5893.0651608587496,-2062.5157432720548,"-38,8%▼","Se bem. fra RM koncern (PJ)"]
["Region Midt, Voksen psykiatrien","Hovedart 4: Tjenesteydelser m.v. ",44541.34574138061,43378.60716,36724.380894471797,38607.194798099801,1162.7385813806104,"2,7%","Se bem. fra RM koncern (PJ)"]
["Region Midt, Voksen psykiatrien","Hovedart 5: Tilskud og overførsler",-59.364096474283556,0.68431401800000002,null,null,-60.048410492283558,"-8775,0%▼","Se bem. fra RM koncern (PJ)"]
["Region Midt, Voksen psykiatrien","Hovedart 6: Finansudgifter",null,null,null,null,0,""]
["Region Midt, Voksen psykiatrien","Hovedart 7: Indtægter",-9316.4388572520074,-15465.637000000001,-6687.5073108780671,-4906.9844722093103,6149.1981427479932,"-39,8%▼","Se bem. fra RM koncern (PJ)"]
["Region Midt, Voksen psykiatrien","Hovedart 8: Finansindtægter",null,null,0,null,0,""]
["Region Midt, Voksen psykiatrien","Hovedart 9: Interne udgifter og indtægter",-26490.797140242012,-18154.981909999999,-13445.955743700993,-19434.438476085099,-8335.8152302420131,"45,9%▲","Se bem. fra RM koncern (PJ)"]
["Region Midt, Voksen psykiatrien","I alt",{"$f":"SUMIFS((C7:C14),(A7:A14),A15)","v":58670.997131778},{"$f":"SUMIFS((D7:D14),(A7:A14),A15)","v":57439.171825017998},{"$f":"SUMIFS((E7:E14),(A7:A14),A15)","v":48018.284982693483},{"$f":"SUMIFS((F7:F14),(A7:A14),A15)","v":57843.629263820549},1231.8253067600017,"2,1%","Se bem. fra RM koncern (PJ)"]
["Region Midt, Børn-unge psykiatrien",null,null,null,null,null,0,""]
["Region Midt, Børn-unge psykiatrien","Hovedart 1: Lønninger",9050.2374277998115,8400.0868470000005,7088.8847636839946,8118.2417468435497,650.150580799811,"7,7%▲","Se bem. fra RM koncern (PJ)"]
["Region Midt, Børn-unge psykiatrien","Hovedart 2: Varekøb",629.82915968070222,1053.9587389999999,-452.14217274136109,1269.51283914125,-424.1295793192977,"-40,2%▼","Se bem. fra RM koncern (PJ)"]
["Region Midt, Børn-unge psykiatrien","Hovedart 4: Tjenesteydelser m.v. ",8623.9103907096887,8601.1228389999997,7755.3509875921509,8316.9502019001702,22.787551709689069,"0,3%","Se bem. fra RM koncern (PJ)"]
["Region Midt, Børn-unge psykiatrien","Hovedart 5: Tilskud og overførsler",-11.493829831550077,0.13568598200000001,null,null,-11.629515813550077,"-8570,9%▼","Se bem. fra RM koncern (PJ)"]
["Region Midt, Børn-unge psykiatrien","Hovedart 6: Finansudgifter",null,null,null,null,0,""]
["Region Midt, Børn-unge psykiatrien","Hovedart 7: Indtægter",-1803.8102021426873,-3066.5309999999999,-1412.2488974553453,-1057.0865277906901,1262.7207978573126,"-41,2%▼","Se bem. fra RM koncern (PJ)"]
["Region Midt, Børn-unge psykiatrien","Hovedart 8: Finansindtægter",null,null,0,null,0,""]
["Region Midt, Børn-unge psykiatrien","Hovedart 9: Interne udgifter og indtægter",-5129.0381310520861,-3599.775091,-2839.4789405892766,-4186.6615239149096,-1529.2630400520861,"42,5%▲","Se bem. fra RM koncern (PJ)"]
["Region Midt, Børn-unge psykiatrien","I alt",{"$f":"SUMIFS((C7:C24),(A7:A24),A25)","v":11359.634815163881},{"$f":"SUMIFS((D7:D24),(A7:A24),A25)","v":11388.998019982002},{"$f":"SUMIFS((E7:E24),(A7:A24),A25)","v":10140.365740490162},{"$f":"SUMIFS((F7:F24),(A7:A24),A25)","v":12460.956736179371},-29.363204818120721,"-0,3%","Se bem. fra RM koncern (PJ)"]
["Ikke fordelte udgifter i Region Midt, psykiatri",null,null,null,null,null,0,""]
["Ikke fordelte udgifter i Region Midt, psykiatri","Hovedart 1: Lønninger",null,null,null,0,0,""]
["Ikke fordelte udgifter i Region Midt, psykiatri","Hovedart 2: Varekøb",null,null,null,null,0,""]
["Ikke fordelte udgifter i Region Midt, psykiatri","Hovedart 4: Tjenesteydelser m.v. ",null,null,null,null,0,""]
["Ikke fordelte udgifter i Region Midt, psykiatri","Hovedart 5: Tilskud og overførsler",null,null,null,null,0,""]
["Ikke fordelte udgifter i Region Midt, psykiatri","Hovedart 6: Finansudgifter",null,null,null,null,0,""]
["Ikke fordelte udgifter i Region Midt, psykiatri","Hovedart 7: Indtægter",null,null,null,null,0,""]
["Ikke fordelte udgifter i Region Midt, psykiatri","Hovedart 8: Finansindtægter",null,null,null,null,0,""]
["Ikke fordelte udgifter i Region Midt, psykiatri","Hovedart 9: Interne udgifter og indtægter",null,null,null,null,0,""]
["Ikke fordelte udgifter i Region Midt, psykiatri","I alt",{"$f":"SUMIFS((C7:C34),(A7:A34),A35)","v":0},{"$f":"SUMIFS((D7:D34),(A7:A34),A35)","v":0},{"$f":"SUMIFS((E7:E34),(A7:A34),A35)","v":0},{"$f":"SUMIFS((F7:F34),(A7:A34),A35)","v":0},0,""]

{"sheet":"Skema 3","index":2,"n_rows":26,"n_cols":9,"rows_kept":26,"cut":false,"hidden":false,"merged":[[1,1,2,8]]}
["Region Midtjylland, psykiatriske sygehuse."]
[null,"Skema 3:Regionale fællesudgifter og -indtægter. (1.000 kr.)"]
[]
[]
["Sygehus",null,2023,2022,2021,2020,"Δ2022-2023","% afvigelse","Begrundelse"]
["Region Midt, Voksen psykiatrien"]
["Region Midt, Voksen psykiatrien","1.70.50: Andel af fællesudgifter",36228.258732262038,35337.645499999999,30626.663069436705,31618.836069638615,{"$f":"IF(ISERROR(C7- D7)=TRUE,\"\",C7 - D7)","v":890.61323226203967},{"$f":"IF(ISERROR((((C7- D7)/D7)*100)=TRUE),\"\",IF((((C7- D7)/D7)*100)<-7,FIXED(((C7- D7)/D7)*100, 1,TRUE) &\"%\" & \"▼\",IF((((C7- D7)/D7)*100)>7,FIXED(((C7- D7)/D7)*100, 1,TRUE) &\"%\" &\"▲\",FIXED(((C7- D7)/D7)*100, 1,TRUE)&\"%\")))","v":"2,5%"}]
["Region Midt, Voksen psykiatrien","1.60.40: Andel af central administration af sundhed (til og med 2019)",null,null,null,null,0,""]
["Region Midt, Voksen psykiatrien","1.60.41: Andel af øvrige udgifter og indtægter",null,null,null,null,0,""]
["Region Midt, Voksen psykiatrien","1.50.33: Andel af central administration af sundhed (ekskl. psykiatri)",null,null,null,null,0,""]
["Region Midt, Voksen psykiatrien","1.50.35: Administration af det psykiatriske område (kun central del)",null,null,null,null,0,""]
["Region Midt, Voksen psykiatrien","I alt",{"$f":"SUMIFS((C7:C11),(A7:A11),A12)","v":36228.258732262038},{"$f":"SUMIFS((D7:D11),(A7:A11),A12)","v":35337.645499999999},{"$f":"SUMIFS((E7:E11),(A7:A11),A12)","v":30626.663069436705},{"$f":"SUMIFS((F7:F11),(A7:A11),A12)","v":31618.836069638615},890.61323226203967,"2,5%"]
["Region Midt, Børn-unge psykiatrien",null,null,null,null,null,0,""]
["Region Midt, Børn-unge psykiatrien","1.70.50: Andel af fællesudgifter",7014.3650066732243,7006.7586229999997,6467.6521672272083,6811.4838803613893,7.6063836732246273,"0,1%"]
["Region Midt, Børn-unge psykiatrien","1.60.40: Andel af central administration af sundhed (til og med 2019)",null,null,null,null,0,""]
["Region Midt, Børn-unge psykiatrien","1.60.41: Andel af øvrige udgifter og indtægter",null,null,null,null,0,""]
["Region Midt, Børn-unge psykiatrien","1.50.33: Andel af central administration af sundhed (ekskl. psykiatri)",null,null,null,null,0,""]
["Region Midt, Børn-unge psykiatrien","1.50.35: Administration af det psykiatriske område (kun central del)",null,null,null,null,0,""]
["Region Midt, Børn-unge psykiatrien","I alt",{"$f":"SUMIFS((C7:C18),(A7:A18),A19)","v":7014.3650066732243},{"$f":"SUMIFS((D7:D18),(A7:A18),A19)","v":7006.7586229999997},{"$f":"SUMIFS((E7:E18),(A7:A18),A19)","v":6467.6521672272083},{"$f":"SUMIFS((F7:F18),(A7:A18),A19)","v":6811.4838803613893},7.6063836732246273,"0,1%"]
["Ikke fordelte udgifter i Region Midt, psykiatri",null,null,null,null,null,0,""]
["Ikke fordelte udgifter i Region Midt, psykiatri","1.70.50: Andel af fællesudgifter",21226.606199999998,19890.78069,19610.890170000002,19691.54637,1335.8255099999988,"6,7%"]
["Ikke fordelte udgifter i Region Midt, psykiatri","1.60.40: Andel af central administration af sundhed (til og med 2019)",null,null,null,null,0,""]
["Ikke fordelte udgifter i Region Midt, psykiatri","1.60.41: Andel af øvrige udgifter og indtægter",null,null,null,null,0,""]
["Ikke fordelte udgifter i Region Midt, psykiatri","1.50.33: Andel af central administration af sundhed (ekskl. psykiatri)",null,null,null,null,0,""]
["Ikke fordelte udgifter i Region Midt, psykiatri","1.50.35: Administration af det psykiatriske område (kun central del)",null,null,null,null,0,""]
["Ikke fordelte udgifter i Region Midt, psykiatri","I alt",{"$f":"SUMIFS((C7:C25),(A7:A25),A26)","v":21226.606199999998},{"$f":"SUMIFS((D7:D25),(A7:A25),A26)","v":19890.78069},{"$f":"SUMIFS((E7:E25),(A7:A25),A26)","v":19610.890170000002},{"$f":"SUMIFS((F7:F25),(A7:A25),A26)","v":19691.54637},1335.8255099999988,"6,7%"]

{"sheet":"Skema 4","index":3,"n_rows":20,"n_cols":9,"rows_kept":20,"cut":false,"hidden":false,"merged":[[1,1,2,8]]}
["Region Midtjylland, psykiatriske sygehuse."]
[null,"Skema 4: Udgifter og indtægter til og fra psykiatriske afdelinger konteret på somatiske sygehuse. (1.000 kr.)"]
[]
[]
["Sygehus",null,2023,2022,2021,2020,"Δ2022-2023","% afvigelse","Begrundelse"]
["Region Midt, Voksen psykiatrien"]
["Region Midt, Voksen psykiatrien","Korrektion",null,null,null,null,{"$f":"IF(ISERROR(C7- D7)=TRUE,\"\",C7 - D7)","v":0},{"$f":"IF(ISERROR((((C7- D7)/D7)*100)=TRUE),\"\",IF((((C7- D7)/D7)*100)<-7,FIXED(((C7- D7)/D7)*100, 1,TRUE) &\"%\" & \"▼\",IF((((C7- D7)/D7)*100)>7,FIXED(((C7- D7)/D7)*100, 1,TRUE) &\"%\" &\"▲\",FIXED(((C7- D7)/D7)*100, 1,TRUE)&\"%\")))","v":""}]
["Region Midt, Voksen psykiatrien","Lønudg. på psyk. afd.,somatiske sygehuse",null,null,null,null,0,""]
["Region Midt, Voksen psykiatrien","Øvrige udg. til psyk. afd.,somatiske sygehuse",null,null,null,null,0,""]
["Region Midt, Voksen psykiatrien","I alt",{"$f":"SUMIFS((C7:C9),(A7:A9),A10)","v":0},{"$f":"SUMIFS((D7:D9),(A7:A9),A10)","v":0},{"$f":"SUMIFS((E7:E9),(A7:A9),A10)","v":0},{"$f":"SUMIFS((F7:F9),(A7:A9),A10)","v":0},0,""]
["Region Midt, Børn-unge psykiatrien",null,null,null,null,null,0,""]
["Region Midt, Børn-unge psykiatrien","Korrektion",null,null,null,null,0,""]
["Region Midt, Børn-unge psykiatrien","Lønudg. på psyk. afd.,somatiske sygehuse",null,null,null,null,0,""]
["Region Midt, Børn-unge psykiatrien","Øvrige udg. til psyk. afd.,somatiske sygehuse",null,null,null,null,0,""]
["Region Midt, Børn-unge psykiatrien","I alt",{"$f":"SUMIFS((C7:C14),(A7:A14),A15)","v":0},{"$f":"SUMIFS((D7:D14),(A7:A14),A15)","v":0},{"$f":"SUMIFS((E7:E14),(A7:A14),A15)","v":0},{"$f":"SUMIFS((F7:F14),(A7:A14),A15)","v":0},0,""]
["Ikke fordelte udgifter i Region Midt, psykiatri",null,null,null,null,null,0,""]
["Ikke fordelte udgifter i Region Midt, psykiatri","Korrektion",null,null,null,null,0,""]
["Ikke fordelte udgifter i Region Midt, psykiatri","Lønudg. på psyk. afd.,somatiske sygehuse",null,null,null,null,0,""]
["Ikke fordelte udgifter i Region Midt, psykiatri","Øvrige udg. til psyk. afd.,somatiske sygehuse",null,null,null,null,0,""]
["Ikke fordelte udgifter i Region Midt, psykiatri","I alt",{"$f":"SUMIFS((C7:C19),(A7:A19),A20)","v":0},{"$f":"SUMIFS((D7:D19),(A7:A19),A20)","v":0},{"$f":"SUMIFS((E7:E19),(A7:A19),A20)","v":0},{"$f":"SUMIFS((F7:F19),(A7:A19),A20)","v":0},0,""]

{"sheet":"Skema 5","index":4,"n_rows":20,"n_cols":9,"rows_kept":20,"cut":false,"hidden":false,"merged":[[1,1,2,8]]}
["Region Midtjylland, psykiatriske sygehuse."]
[null,"Skema 5: Leasing- og huslejeudgifter. (1.000 kr.)"]
[]
[]
["Sygehus",null,2023,2022,2021,2020,"Δ2022-2023","% afvigelse","Begrundelse"]
["Region Midt, Voksen psykiatrien"]
["Region Midt, Voksen psykiatrien","Andre udgifter",null,null,null,null,{"$f":"IF(ISERROR(C7- D7)=TRUE,\"\",C7 - D7)","v":0},{"$f":"IF(ISERROR((((C7- D7)/D7)*100)=TRUE),\"\",IF((((C7- D7)/D7)*100)<-7,FIXED(((C7- D7)/D7)*100, 1,TRUE) &\"%\" & \"▼\",IF((((C7- D7)/D7)*100)>7,FIXED(((C7- D7)/D7)*100, 1,TRUE) &\"%\" &\"▲\",FIXED(((C7- D7)/D7)*100, 1,TRUE)&\"%\")))","v":""}]
["Region Midt, Voksen psykiatrien","Leasing- og lejeudgifter",1509.6671069239644,1040.002,1635.3242272275877,2100.3429999999998,469.66510692396446,"45,2%▲"," Fluktuation, ringe beløbsstørrelse "]
["Region Midt, Voksen psykiatrien","Huslejeudgifter",39621.45536,35973.971899999997,35214.093999999997,35098.938000000002,3647.4834600000031,"10,1%▲","Fluktuation"]
["Region Midt, Voksen psykiatrien","I alt",{"$f":"SUMIFS((C7:C9),(A7:A9),A10)","v":41131.122466923967},{"$f":"SUMIFS((D7:D9),(A7:A9),A10)","v":37013.973899999997},{"$f":"SUMIFS((E7:E9),(A7:A9),A10)","v":36849.418227227587},{"$f":"SUMIFS((F7:F9),(A7:A9),A10)","v":37199.281000000003},4117.1485669239701,"11,1%▲"]
["Region Midt, Børn-unge psykiatrien",null,null,null,null,null,0,""]
["Region Midt, Børn-unge psykiatrien","Andre udgifter",null,null,null,null,0,""]
["Region Midt, Børn-unge psykiatrien","Leasing- og lejeudgifter",9.9521230760354449,30.61271017,43.268772772412191,39.055999999999997,-20.660587093964555,"-67,5%▼"," Fluktuation, ringe beløbsstørrelse "]
["Region Midt, Børn-unge psykiatrien","Huslejeudgifter",null,164.42420999999999,389.88900000000001,422.935,-164.42420999999999,"-100,0%▼","Ingen udgifter i 2023"]
["Region Midt, Børn-unge psykiatrien","I alt",{"$f":"SUMIFS((C7:C14),(A7:A14),A15)","v":9.9521230760354449},{"$f":"SUMIFS((D7:D14),(A7:A14),A15)","v":195.03692016999997},{"$f":"SUMIFS((E7:E14),(A7:A14),A15)","v":433.15777277241222},{"$f":"SUMIFS((F7:F14),(A7:A14),A15)","v":461.99099999999999},-185.08479709396454,"-94,9%▼"]
["Ikke fordelte udgifter i Region Midt, psykiatri",null,null,null,null,null,0,""]
["Ikke fordelte udgifter i Region Midt, psykiatri","Andre udgifter",null,null,null,0,0,""]
["Ikke fordelte udgifter i Region Midt, psykiatri","Leasing- og lejeudgifter",0,null,null,0,0,""]
["Ikke fordelte udgifter i Region Midt, psykiatri","Huslejeudgifter",5001.7534100000003,4289.6355800000001,2787.2559999999999,2883.8199199999999,712.11783000000014,"16,6%▲"," Fluktuation, ringe beløbsstørrelse "]
["Ikke fordelte udgifter i Region Midt, psykiatri","I alt",{"$f":"SUMIFS((C7:C19),(A7:A19),A20)","v":5001.7534100000003},{"$f":"SUMIFS((D7:D19),(A7:A19),A20)","v":4289.6355800000001},{"$f":"SUMIFS((E7:E19),(A7:A19),A20)","v":2787.2559999999999},{"$f":"SUMIFS((F7:F19),(A7:A19),A20)","v":2883.8199199999999},712.11783000000014,"16,6%▲"]

{"sheet":"Skema 6","index":5,"n_rows":155,"n_cols":9,"rows_kept":155,"cut":false,"hidden":false,"merged":[[1,1,2,8]]}
["Region Midtjylland, psykiatriske sygehuse."]
[null,"Skema 6: Udgifter til andet end patientbehandling. (1.000 kr.)"]
[]
[]
["Sygehus",null,2023,2022,2021,2020,"Δ2022-2023","% afvigelse","Begrundelse"]
["Region Midt, Voksen psykiatrien"]
["Region Midt, Voksen psykiatrien","Skema 6.1: Center for voldsramte (Bispebjerg)",null,null,null,null,{"$f":"IF(ISERROR(C7- D7)=TRUE,\"\",C7 - D7)","v":0},{"$f":"IF(ISERROR((((C7- D7)/D7)*100)=TRUE),\"\",IF((((C7- D7)/D7)*100)<-7,FIXED(((C7- D7)/D7)*100, 1,TRUE) &\"%\" & \"▼\",IF((((C7- D7)/D7)*100)>7,FIXED(((C7- D7)/D7)*100, 1,TRUE) &\"%\" &\"▲\",FIXED(((C7- D7)/D7)*100, 1,TRUE)&\"%\")))","v":""}]
["Region Midt, Voksen psykiatrien","Skema 6.2: Ventilatørbistand i hjemmet, respiratorpatienter",null,null,null,null,0,""]
["Region Midt, Voksen psykiatrien","Skema 6.3: Blodprøvetagning i eget hjem",null,null,null,null,0,""]
["Region Midt, Voksen psykiatrien","Skema 6.4: Psykinfo + pårørende",null,null,null,null,0,""]
["Region Midt, Voksen psykiatrien","Skema 6.5: Leveret udstyr til patienter i eget hjem, ilt og sonderemedier",null,null,null,null,0,""]
["Region Midt, Voksen psykiatrien","Skema 6.6: Montebello (Nordsjællands Hospitaler)",null,null,null,null,0,""]
["Region Midt, Voksen psykiatrien","Skema 6.7: Satspulje korrektioner mellem år",null,null,null,null,0,""]
["Region Midt, Voksen psykiatrien","Skema 6.8: Klinisk farmakologisk rådgivning af praksissektoren",null,null,null,null,0,""]
["Region Midt, Voksen psykiatrien","Skema 6.9: Tandregulering ifm. operation",null,null,null,null,0,""]
["Region Midt, Voksen psykiatrien","Skema 6.10: Giftlinjen",null,null,null,null,0,""]
["Region Midt, Voksen psykiatrien","Skema 6.11: Tjenestemandspensioner",null,null,null,null,0,""]
["Region Midt, Voksen psykiatrien","Skema 6.12: Art 4.6 Betalinger til staten",null,null,null,null,0,""]
["Region Midt, Voksen psykiatrien","Skema 6.13: Art 4.7 Betalinger til kommuner",null,null,null,null,0,""]
["Region Midt, Voksen psykiatrien","Skema 6.14: Art 4.8 Betalinger til andre regioner",29021.36562084969,{"$f":"37272767/1000","v":37272.767},36324.40969,35269.354530000011,-8251.4013791503094,"-22,1%▼","Lavet korrektion - derfor også udgift ved skema 6.14 under ikke fordelte udgifter"]
["Region Midt, Voksen psykiatrien","Skema 6.15: Art 7.6 Betalinger fra staten",-3430.694,{"$f":"-3234216/1000","v":-3234.2159999999999},-3482.3159999999998,-4245.4683700000005,-196.47800000000007,"6,1%","Naturlig fluktuation"]
["Region Midt, Voksen psykiatrien","Skema 6.16: Art 7.7 Betalinger fra kommuner",-27506.452079999999,{"$f":"-33352206/1000","v":-33352.205999999998},-32776.18507,-43002.510499999997,5845.7539199999992,"-17,5%▼","Skyldes bl.a. ommærkning af særlige pladser - derved mindre kommunalfinansiering"]
["Region Midt, Voksen psykiatrien","Skema 6.17: Art 7.8 Betalinger fra andre regioner",-53428.814083027923,{"$f":"-44124186/1000","v":-44124.186000000002},-46610.17,-41821.341999999997,-9304.6280830279211,"21,1%▲","Mellemregional"]
["Region Midt, Voksen psykiatrien","Skema 6.18: Betalinger til selvejende, private og udenlandske sygehuse",null,0,null,0,0,""]
["Region Midt, Voksen psykiatrien","Skema 6.19: Dækningsafgift/ejendomsskat",1525.92831,{"$f":"1555712/1000","v":1555.712},1532.8318300000001,1456.3271299999999,-29.783689999999979,"-1,9%","Naturlig fluktuation"]
["Region Midt, Voksen psykiatrien","Skema 6.20: Forsikringer/erstatninger",312.98500000000001,{"$f":"628472/1000","v":628.47199999999998},566.93200000000002,336.04500000000002,-315.48699999999997,"-50,2%▼","Naturlig fluktuation"]
["Region Midt, Voksen psykiatrien","Skema 6.21: Vederlagsfri Lab. –ydelser og andre ydelser til praksissektoren",null,null,null,null,0,""]
["Region Midt, Voksen psykiatrien","Skema 6.22: Patienttransport",20.98142,43.991999999999997,179.012,117.67928000000001,-23.010579999999997,"-52,3%▼","Naturlig fluktuation"]
["Region Midt, Voksen psykiatrien","Skema 6.23: Serviceydelser til/fra andre institutioner eller sygehuse udenfor regionen",null,null,null,null,0,""]
["Region Midt, Voksen psykiatrien","Skema 6.24: Udgifter til eksternt finansierede forskning",null,null,null,null,0,""]
["Region Midt, Voksen psykiatrien","Skema 6.25: Forebyggelse rettet mod praksissektoren og kommuner",null,null,null,null,0,""]
["Region Midt, Voksen psykiatrien","Skema 6.26: Praksisreservelæger",null,null,null,null,0,""]
["Region Midt, Voksen psykiatrien","Skema 6.27: Præhospital",null,null,null,null,0,""]
["Region Midt, Voksen psykiatrien","Skema 6.28: Udgifter til Danske Regioner (Kontigent, MedCom, Fællesproj.)",585.72572712214173,{"$f":"849571/1000","v":849.57100000000003},928,820.50642000000005,-263.84527287785829,"-31,1%▼","Lavet korrektion ifht. LUP - andel fordelt til Børne- og ungdomspsykiatrien"]
["Region Midt, Voksen psykiatrien","Skema 6.29: Hospice",null,null,null,null,0,""]
["Region Midt, Voksen psykiatrien","Skema 6.30: Konsulenter(praksis)",null,null,null,null,0,""]
["Region Midt, Voksen psykiatrien","Skema 6.31: Videnskabsetisk Komité",null,null,null,null,0,""]
["Region Midt, Voksen psykiatrien","Skema 6.32: Tolkebistand",1542.5209899999998,{"$f":"1421287/1000","v":1421.287},2042.252,2507.6768800000004,121.23398999999972,"8,5%▲","Naturlig fluktuation"]
["Region Midt, Voksen psykiatrien","Skema 6.33: Dansk Center for Partikelterapi",null,null,null,null,{"$f":"IF(ISERROR(C39- D39)=TRUE,\"\",C39 - D39)","v":0},{"$f":"IF(ISERROR((((C39- D39)/D39)*100)=TRUE),\"\",IF((((C39- D39)/D39)*100)<-7,FIXED(((C39- D39)/D39)*100, 1,TRUE) &\"%\" & \"▼\",IF((((C39- D39)/D39)*100)>7,FIXED(((C39- D39)/D39)*100, 1,TRUE) &\"%\" &\"▲\",FIXED(((C39- D39)/D39)*100, 1,TRUE)&\"%\")))","v":""}]
["Region Midt, Voksen psykiatrien","Skema 6.34: Politisk organisation – overførte udgifter fra funktion 4.10.01, 4.10.02 og 4.10.04",null,null,null,null,0,""]
["Region Midt, Voksen psykiatrien","Skema 6.35: Øvrige udgifter, Region Sjælland",null,null,null,null,0,""]
["Region Midt, Voksen psykiatrien","Skema 6.36: Sundhedsydelser ifm. specialsektor",null,null,null,null,0,""]
["Region Midt, Voksen psykiatrien","Skema 6.37: Udgifter til primær sundhed fra skema 2",null,null,null,null,0,""]
["Region Midt, Voksen psykiatrien","Skema 6.38: Udgifter til primær sundhed fra skema 3",null,null,null,null,0,""]
["Region Midt, Voksen psykiatrien","Skema 6.39: Særlige udgifter ifm. COVID-19",null,null,null,null,0,""]
["Region Midt, Voksen psykiatrien","Skema 6.40: Udleveret udstyr/tilbehør ifm. cochlear implantater",null,null,null,null,0,""]
["Region Midt, Voksen psykiatrien","Skema 6.41: Luxturna-behandling, Rigshospitalet",null,null,null,null,0,""]
["Region Midt, Voksen psykiatrien","Skema 6.42: Udleveret medicin",null,null,null,null,0,""]
["Region Midt, Voksen psykiatrien","Skema 6.43: Udgifter ifm. sundhedsklynger",null,null,null,null,0,""]
["Region Midt, Voksen psykiatrien","Skema 6.44: Ukrainske patienter under særlov eller asyl",null,null,null,null,0,""]
["Region Midt, Voksen psykiatrien","Skema 6.45: Udgifter ifm. de særlige pladser i psykiatrien",28989.164013750014,null,null,null,28989.164013750014,"","Ny i DTD 2023"]
["Region Midt, Voksen psykiatrien","Skema 6.46: Sikringsafdelingen, Region Sjælland",null,null,null,null,0,""]
["Region Midt, Voksen psykiatrien","Skema 6.47: Øvrige (Kan kun benyttes efter aftale med Sundhedsdatastyrelsen)",null,null,null,null,0,""]
["Region Midt, Voksen psykiatrien","Lukkede poster (må kun bruges af Sundhedsdatastyrelsen)",null,null,null,null,0,""]
["Region Midt, Voksen psykiatrien","I alt",{"$f":"SUMIFS((C7:C54),(A7:A54),A55)","v":-22367.28908130608},{"$f":"SUMIFS((D7:D54),(A7:A54),A55)","v":-38938.807000000001},{"$f":"SUMIFS((E7:E54),(A7:A54),A55)","v":-41295.23354999999},{"$f":"SUMIFS((F7:F54),(A7:A54),A55)","v":-48561.731629999995},16571.51791869392,"-42,6%▼"]
["Region Midt, Børn-unge psykiatrien",null,null,null,null,null,0,""]
["Region Midt, Børn-unge psykiatrien","Skema 6.1: Center for voldsramte (Bispebjerg)",null,null,null,null,0,""]
["Region Midt, Børn-unge psykiatrien","Skema 6.2: Ventilatørbistand i hjemmet, respiratorpatienter",null,null,null,null,0,""]
["Region Midt, Børn-unge psykiatrien","Skema 6.3: Blodprøvetagning i eget hjem",null,null,null,null,0,""]
["Region Midt, Børn-unge psykiatrien","Skema 6.4: Psykinfo + pårørende",null,null,null,null,0,""]
["Region Midt, Børn-unge psykiatrien","Skema 6.5: Leveret udstyr til patienter i eget hjem, ilt og sonderemedier",null,null,null,null,0,""]
["Region Midt, Børn-unge psykiatrien","Skema 6.6: Montebello (Nordsjællands Hospitaler)",null,null,null,null,0,""]
["Region Midt, Børn-unge psykiatrien","Skema 6.7: Satspulje korrektioner mellem år",null,null,null,null,0,""]
["Region Midt, Børn-unge psykiatrien","Skema 6.8: Klinisk farmakologisk rådgivning af praksissektoren",null,null,null,null,0,""]
["Region Midt, Børn-unge psykiatrien","Skema 6.9: Tandregulering ifm. operation",null,null,null,null,0,""]
["Region Midt, Børn-unge psykiatrien","Skema 6.10: Giftlinjen",null,null,null,null,0,""]
["Region Midt, Børn-unge psykiatrien","Skema 6.11: Tjenestemandspensioner",null,null,null,null,0,""]
["Region Midt, Børn-unge psykiatrien","Skema 6.12: Art 4.6 Betalinger til staten",null,null,null,null,0,""]
["Region Midt, Børn-unge psykiatrien","Skema 6.13: Art 4.7 Betalinger til kommuner",null,null,null,null,0,""]
["Region Midt, Børn-unge psykiatrien","Skema 6.14: Art 4.8 Betalinger til andre regioner",1193.8136391503019,{"$f":"1205889/1000","v":1205.8889999999999},1149.6597400000001,800.61090000000002,-12.075360849697972,"-1,0%","Naturlig fluktuation"]
["Region Midt, Børn-unge psykiatrien","Skema 6.15: Art 7.6 Betalinger fra staten",null,0,null,null,{"$f":"IF(ISERROR(C71- D71)=TRUE,\"\",C71 - D71)","v":0},{"$f":"IF(ISERROR((((C71- D71)/D71)*100)=TRUE),\"\",IF((((C71- D71)/D71)*100)<-7,FIXED(((C71- D71)/D71)*100, 1,TRUE) &\"%\" & \"▼\",IF((((C71- D71)/D71)*100)>7,FIXED(((C71- D71)/D71)*100, 1,TRUE) &\"%\" &\"▲\",FIXED(((C71- D71)/D71)*100, 1,TRUE)&\"%\")))","v":""}]
["Region Midt, Børn-unge psykiatrien","Skema 6.16: Art 7.7 Betalinger fra kommuner",null,0,null,null,0,""]
["Region Midt, Børn-unge psykiatrien","Skema 6.17: Art 7.8 Betalinger fra andre regioner",-3519.8879169720785,{"$f":"-7057630/1000","v":-7057.63},-6844.4750000000004,-8062.866,3537.7420830279216,"-50,1%▼","Lavet korrektion til hvordan det bogføres"]
["Region Midt, Børn-unge psykiatrien","Skema 6.18: Betalinger til selvejende, private og udenlandske sygehuse",1260.9549099999999,{"$f":"1353370/1000","v":1353.37},138.08000000000001,1085.7000600000001,-92.415089999999964,"-6,8%","Naturlig fluktuation"]
["Region Midt, Børn-unge psykiatrien","Skema 6.19: Dækningsafgift/ejendomsskat",107.773,{"$f":"111266/1000","v":111.26600000000001},108.309,107.45099999999999,-3.4930000000000092,"-3,1%","Naturlig fluktuation"]
["Region Midt, Børn-unge psykiatrien","Skema 6.20: Forsikringer/erstatninger",19.353000000000002,{"$f":"37806/1000","v":37.805999999999997},56.929000000000002,42.171999999999997,-18.452999999999996,"-48,8%▼","Naturlig fluktuation, ringe beløb størrelse"]
["Region Midt, Børn-unge psykiatrien","Skema 6.21: Vederlagsfri Lab. –ydelser og andre ydelser til praksissektoren",null,null,null,null,0,""]
["Region Midt, Børn-unge psykiatrien","Skema 6.22: Patienttransport",null,null,null,0.22862000000000002,0,""]
["Region Midt, Børn-unge psykiatrien","Skema 6.23: Serviceydelser til/fra andre institutioner eller sygehuse udenfor regionen",null,null,null,null,0,""]
["Region Midt, Børn-unge psykiatrien","Skema 6.24: Udgifter til eksternt finansierede forskning",null,null,null,null,0,""]
["Region Midt, Børn-unge psykiatrien","Skema 6.25: Forebyggelse rettet mod praksissektoren og kommuner",null,null,null,null,0,""]
["Region Midt, Børn-unge psykiatrien","Skema 6.26: Praksisreservelæger",null,null,null,null,0,""]
["Region Midt, Børn-unge psykiatrien","Skema 6.27: Præhospital",null,null,null,null,0,""]
["Region Midt, Børn-unge psykiatrien","Skema 6.28: Udgifter til Danske Regioner (Kontigent, MedCom, Fællesproj.)",113.40578287785824,null,null,null,113.40578287785824,"","Lavet korrektion ifht. LUP - andel fordelt til BUA"]
["Region Midt, Børn-unge psykiatrien","Skema 6.29: Hospice",null,null,null,null,0,""]
["Region Midt, Børn-unge psykiatrien","Skema 6.30: Konsulenter(praksis)",null,null,null,0,0,""]
["Region Midt, Børn-unge psykiatrien","Skema 6.31: Videnskabsetisk Komité",null,null,null,0,0,""]
["Region Midt, Børn-unge psykiatrien","Skema 6.32: Tolkebistand",255.26465000000002,{"$f":"283114/1000","v":283.11399999999998},342.69299999999998,333.64715999999999,-27.849349999999959,"-9,8%▼","Naturlig fluktuation"]
["Region Midt, Børn-unge psykiatrien","Skema 6.33: Dansk Center for Partikelterapi",null,null,null,null,0,""]
["Region Midt, Børn-unge psykiatrien","Skema 6.34: Politisk organisation – overførte udgifter fra funktion 4.10.01, 4.10.02 og 4.10.04",null,null,null,null,0,""]
["Region Midt, Børn-unge psykiatrien","Skema 6.35: Øvrige udgifter, Region Sjælland",null,null,null,null,0,""]
["Region Midt, Børn-unge psykiatrien","Skema 6.36: Sundhedsydelser ifm. specialsektor",null,null,null,null,0,""]
["Region Midt, Børn-unge psykiatrien","Skema 6.37: Udgifter til primær sundhed fra skema 2",null,null,null,null,0,""]
["Region Midt, Børn-unge psykiatrien","Skema 6.38: Udgifter til primær sundhed fra skema 3",null,null,null,null,0,""]
["Region Midt, Børn-unge psykiatrien","Skema 6.39: Særlige udgifter ifm. COVID-19",null,null,null,null,0,""]
["Region Midt, Børn-unge psykiatrien","Skema 6.40: Udleveret udstyr/tilbehør ifm. cochlear implantater",null,null,null,null,0,""]
["Region Midt, Børn-unge psykiatrien","Skema 6.41: Luxturna-behandling, Rigshospitalet",null,null,null,null,0,""]
["Region Midt, Børn-unge psykiatrien","Skema 6.42: Udleveret medicin",null,null,null,null,0,""]
["Region Midt, Børn-unge psykiatrien","Skema 6.43: Udgifter ifm. sundhedsklynger",null,null,null,null,0,""]
["Region Midt, Børn-unge psykiatrien","Skema 6.44: Ukrainske patienter under særlov eller asyl",null,null,null,null,0,""]
["Region Midt, Børn-unge psykiatrien","Skema 6.45: Udgifter ifm. de særlige pladser i psykiatrien",null,null,null,null,0,""]
["Region Midt, Børn-unge psykiatrien","Skema 6.46: Sikringsafdelingen, Region Sjælland",null,null,null,null,0,""]
["Region Midt, Børn-unge psykiatrien","Skema 6.47: Øvrige (Kan kun benyttes efter aftale med Sundhedsdatastyrelsen)",null,null,null,null,{"$f":"IF(ISERROR(C103- D103)=TRUE,\"\",C103 - D103)","v":0},{"$f":"IF(ISERROR((((C103- D103)/D103)*100)=TRUE),\"\",IF((((C103- D103)/D103)*100)<-7,FIXED(((C103- D103)/D103)*100, 1,TRUE) &\"%\" & \"▼\",IF((((C103- D103)/D103)*100)>7,FIXED(((C103- D103)/D103)*100, 1,TRUE) &\"%\" &\"▲\",FIXED(((C103- D103)/D103)*100, 1,TRUE)&\"%\")))","v":""}]
["Region Midt, Børn-unge psykiatrien","Lukkede poster (må kun bruges af Sundhedsdatastyrelsen)",null,null,null,null,0,""]
["Region Midt, Børn-unge psykiatrien","I alt",{"$f":"SUMIFS((C7:C104),(A7:A104),A105)","v":-569.3229349439182},{"$f":"SUMIFS((D7:D104),(A7:A104),A105)","v":-4066.1850000000009},{"$f":"SUMIFS((E7:E104),(A7:A104),A105)","v":-5048.8042599999999},{"$f":"SUMIFS((F7:F104),(A7:A104),A105)","v":-5693.0562600000012},3496.8620650560824,"-86,0%▼"]
["Ikke fordelte udgifter i Region Midt, psykiatri",null,null,null,null,null,0,""]
["Ikke fordelte udgifter i Region Midt, psykiatri","Skema 6.1: Center for voldsramte (Bispebjerg)",null,null,null,null,0,""]
["Ikke fordelte udgifter i Region Midt, psykiatri","Skema 6.2: Ventilatørbistand i hjemmet, respiratorpatienter",null,null,null,null,0,""]
["Ikke fordelte udgifter i Region Midt, psykiatri","Skema 6.3: Blodprøvetagning i eget hjem",null,null,null,null,0,""]
["Ikke fordelte udgifter i Region Midt, psykiatri","Skema 6.4: Psykinfo + pårørende",3293.9967200000001,{"$f":"2621917/1000","v":2621.9169999999999},2688.625,2708.96,672.07972000000018,"25,6%▲","For alvor kommet i gang med arbejdet efter COVID"]
["Ikke fordelte udgifter i Region Midt, psykiatri","Skema 6.5: Leveret udstyr til patienter i eget hjem, ilt og sonderemedier",null,null,null,null,0,""]
["Ikke fordelte udgifter i Region Midt, psykiatri","Skema 6.6: Montebello (Nordsjællands Hospitaler)",null,null,null,null,0,""]
["Ikke fordelte udgifter i Region Midt, psykiatri","Skema 6.7: Satspulje korrektioner mellem år",13715.092079999997,{"$f":"13849418/1000","v":13849.418},-18086.584169999998,-13647.69918,-134.32592000000295,"-1,0%","Naturlig fluktuation"]
["Ikke fordelte udgifter i Region Midt, psykiatri","Skema 6.8: Klinisk farmakologisk rådgivning af praksissektoren",null,null,null,null,0,""]
["Ikke fordelte udgifter i Region Midt, psykiatri","Skema 6.9: Tandregulering ifm. operation",null,null,null,null,0,""]
["Ikke fordelte udgifter i Region Midt, psykiatri","Skema 6.10: Giftlinjen",null,null,null,null,0,""]
["Ikke fordelte udgifter i Region Midt, psykiatri","Skema 6.11: Tjenestemandspensioner",17149.116969999999,{"$f":"15986215/1000","v":15986.215},15743.106,16067.105160000001,1162.901969999999,"7,3%▲","Naturlig fluktuation"]
["Ikke fordelte udgifter i Region Midt, psykiatri","Skema 6.12: Art 4.6 Betalinger til staten",null,null,null,null,0,""]
["Ikke fordelte udgifter i Region Midt, psykiatri","Skema 6.13: Art 4.7 Betalinger til kommuner",442.47800000000001,479,479,479,-36.521999999999991,"-7,6%▼","Naturlig fluktuation"]
["Ikke fordelte udgifter i Region Midt, psykiatri","Skema 6.14: Art 4.8 Betalinger til andre regioner",7231.46,0,null,null,7231.46,""]
["Ikke fordelte udgifter i Region Midt, psykiatri","Skema 6.15: Art 7.6 Betalinger fra staten",-32359.519,{"$f":"-24321566/1000","v":-24321.565999999999},-15127.765289999999,-30598.864219999999,-8037.9530000000013,"33,0%▲","Indbetalinger af SATS pulje bevillingre er streget "]
["Ikke fordelte udgifter i Region Midt, psykiatri","Skema 6.16: Art 7.7 Betalinger fra kommuner",-9359.4950000000008,{"$f":"-10483478/1000","v":-10483.477999999999},-7330.3829999999998,-2941.5295000000001,1123.9829999999984,"-10,7%▼","Naturlig fluktuation"]
["Ikke fordelte udgifter i Region Midt, psykiatri","Skema 6.17: Art 7.8 Betalinger fra andre regioner",-28156.464,null,-9.0136800000000008,null,-28156.464,"","Korrektion bl.a. mellemregional afregning "]
["Ikke fordelte udgifter i Region Midt, psykiatri","Skema 6.18: Betalinger til selvejende, private og udenlandske sygehuse",null,0,null,null,0,""]
["Ikke fordelte udgifter i Region Midt, psykiatri","Skema 6.19: Dækningsafgift/ejendomsskat",205.84389999999999,{"$f":"205959/1000","v":205.959},200.3699,201.66835999999998,-0.11510000000001241,"-0,1%"]
["Ikke fordelte udgifter i Region Midt, psykiatri","Skema 6.20: Forsikringer/erstatninger",{"$f":"13178.69753+17","v":13195.697529999999},{"$f":"11444398/1000","v":11444.397999999999},8975.5645800000002,5148.17,1751.2995300000002,"15,3%▲","Stor arbejdsskadesag afsluttet med tilhørende udbetaling af erstatning"]
["Ikke fordelte udgifter i Region Midt, psykiatri","Skema 6.21: Vederlagsfri Lab. –ydelser og andre ydelser til praksissektoren",null,null,null,null,0,""]
["Ikke fordelte udgifter i Region Midt, psykiatri","Skema 6.22: Patienttransport",null,null,null,null,0,""]
["Ikke fordelte udgifter i Region Midt, psykiatri","Skema 6.23: Serviceydelser til/fra andre institutioner eller sygehuse udenfor regionen",null,null,null,null,0,""]
["Ikke fordelte udgifter i Region Midt, psykiatri","Skema 6.24: Udgifter til eksternt finansierede forskning",null,null,null,null,0,""]
["Ikke fordelte udgifter i Region Midt, psykiatri","Skema 6.25: Forebyggelse rettet mod praksissektoren og kommuner",null,null,null,null,0,""]
["Ikke fordelte udgifter i Region Midt, psykiatri","Skema 6.26: Praksisreservelæger",null,null,null,null,0,""]
["Ikke fordelte udgifter i Region Midt, psykiatri","Skema 6.27: Præhospital",null,null,null,null,0,""]
["Ikke fordelte udgifter i Region Midt, psykiatri","Skema 6.28: Udgifter til Danske Regioner (Kontigent, MedCom, Fællesproj.)",2710.7044700000001,{"$f":"2567170/1000","v":2567.17},2500.3000000000002,3320.7,143.53447000000006,"5,6%","Naturlig fluktuation"]
["Ikke fordelte udgifter i Region Midt, psykiatri","Skema 6.29: Hospice",null,null,null,null,{"$f":"IF(ISERROR(C135- D135)=TRUE,\"\",C135 - D135)","v":0},{"$f":"IF(ISERROR((((C135- D135)/D135)*100)=TRUE),\"\",IF((((C135- D135)/D135)*100)<-7,FIXED(((C135- D135)/D135)*100, 1,TRUE) &\"%\" & \"▼\",IF((((C135- D135)/D135)*100)>7,FIXED(((C135- D135)/D135)*100, 1,TRUE) &\"%\" &\"▲\",FIXED(((C135- D135)/D135)*100, 1,TRUE)&\"%\")))","v":""}]
["Ikke fordelte udgifter i Region Midt, psykiatri","Skema 6.30: Konsulenter(praksis)",1793.4943499999999,{"$f":"1834678/1000","v":1834.6780000000001},397.642,345.149,-41.183650000000171,"-2,2%","Naturlig fluktuation"]
["Ikke fordelte udgifter i Region Midt, psykiatri","Skema 6.31: Videnskabsetisk Komité",null,null,null,null,0,""]
["Ikke fordelte udgifter i Region Midt, psykiatri","Skema 6.32: Tolkebistand",null,null,null,null,0,""]
["Ikke fordelte udgifter i Region Midt, psykiatri","Skema 6.33: Dansk Center for Partikelterapi",null,null,null,null,0,""]
["Ikke fordelte udgifter i Region Midt, psykiatri","Skema 6.34: Politisk organisation – overførte udgifter fra funktion 4.10.01, 4.10.02 og 4.10.04",1349.58971,{"$f":"1337359/1000","v":1337.3589999999999},1367.069,1139.14257,12.230710000000045,"0,9%","Naturlig fluktuation"]
["Ikke fordelte udgifter i Region Midt, psykiatri","Skema 6.35: Øvrige udgifter, Region Sjælland",null,null,null,null,0,""]
["Ikke fordelte udgifter i Region Midt, psykiatri","Skema 6.36: Sundhedsydelser ifm. specialsektor",null,null,null,null,0,""]
["Ikke fordelte udgifter i Region Midt, psykiatri","Skema 6.37: Udgifter til primær sundhed fra skema 2",null,null,null,null,0,""]
["Ikke fordelte udgifter i Region Midt, psykiatri","Skema 6.38: Udgifter til primær sundhed fra skema 3",null,null,null,null,0,""]
["Ikke fordelte udgifter i Region Midt, psykiatri","Skema 6.39: Særlige udgifter ifm. COVID-19",null,{"$f":"174229/1000","v":174.22900000000001},689.78408000000002,4160,-174.22900000000001,"-100,0%▼","Ingen udgifter i 2023"]
["Ikke fordelte udgifter i Region Midt, psykiatri","Skema 6.40: Udleveret udstyr/tilbehør ifm. cochlear implantater",null,null,null,null,0,""]
["Ikke fordelte udgifter i Region Midt, psykiatri","Skema 6.41: Luxturna-behandling, Rigshospitalet",null,null,null,null,0,""]
["Ikke fordelte udgifter i Region Midt, psykiatri","Skema 6.42: Udleveret medicin",null,null,null,null,0,""]
["Ikke fordelte udgifter i Region Midt, psykiatri","Skema 6.43: Udgifter ifm. sundhedsklynger",null,null,null,null,0,""]
["Ikke fordelte udgifter i Region Midt, psykiatri","Skema 6.44: Ukrainske patienter under særlov eller asyl",null,null,null,null,0,""]
["Ikke fordelte udgifter i Region Midt, psykiatri","Skema 6.45: Udgifter ifm. de særlige pladser i psykiatrien",null,null,null,null,0,""]
["Ikke fordelte udgifter i Region Midt, psykiatri","Skema 6.46: Sikringsafdelingen, Region Sjælland",null,null,null,null,0,""]
["Ikke fordelte udgifter i Region Midt, psykiatri","Skema 6.47: Øvrige (Kan kun benyttes efter aftale med Sundhedsdatastyrelsen)",null,null,null,null,0,""]
["Ikke fordelte udgifter i Region Midt, psykiatri","Lukkede poster (må kun bruges af Sundhedsdatastyrelsen)",null,null,null,null,0,""]
["Ikke fordelte udgifter i Region Midt, psykiatri","I alt",{"$f":"SUMIFS((C7:C154),(A7:A154),A155)","v":-8788.0042700000013},{"$f":"SUMIFS((D7:D154),(A7:A154),A155)","v":15695.299000000005},{"$f":"SUMIFS((E7:E154),(A7:A154),A155)","v":-7512.285579999997},{"$f":"SUMIFS((F7:F154),(A7:A154),A155)","v":-13618.197810000001},-24483.303270000004,"-156,0%▼"]

{"sheet":"Skema 7","index":6,"n_rows":12,"n_cols":13,"rows_kept":12,"cut":false,"hidden":false,"merged":[[4,1,4,2],[1,1,2,8],[4,4,4,5],[4,7,4,8],[4,10,4,11]]}
["Region Midtjylland, psykiatriske sygehuse."]
[null,"Skema 7: Vederlagsfrie ydelser mellem sygehusene. (1.000 kr.)"]
[]
[]
["Sygehus",2023,null,2023,2022,null,2022,2021,null,2021,2020,null,2020]
[null,"Leverede","Modtagne","Lev. - Mod.","Leverede","Modtagne","Lev. - Mod.","Leverede","Modtagne","Lev. - Mod.","Leverede","Modtagne","Lev. - Mod."]
["Region Midt, Voksen psykiatrien",null,35081.649128102988,{"$f":"$B$7-$C$7","v":-35081.649128102988},null,34532.211000000003,{"$f":"$E$7-$F$7","v":-34532.211000000003},null,42277.67,{"$f":"$H$7-$I$7","v":-42277.67},0,49660,{"$f":"$K$7-$L$7","v":-49660}]
["Region Midt, Børn-unge psykiatrien",null,6792.3632167675323,{"$f":"$B$8-$C$8","v":-6792.3632167675323},null,6847.0569999999998,{"$f":"$E$8-$F$8","v":-6847.0569999999998},null,8928.0660000000007,{"$f":"$H$8-$I$8","v":-8928.0660000000007},null,0,{"$f":"$K$8-$L$8","v":0}]
["Ikke fordelte udgifter i Region  Midt, psykiatri",null,null,{"$f":"$B$9-$C$9","v":0},null,null,{"$f":"$E$9-$F$9","v":0},null,null,{"$f":"$H$9-$I$9","v":0},null,null,{"$f":"$K$9-$L$9","v":0}]
["I alt",{"$f":"SUM(B7:B9)","v":0},{"$f":"SUM(C7:C9)","v":41874.01234487052},{"$f":"SUM(D7:D9)","v":-41874.01234487052},{"$f":"SUM(E7:E9)","v":0},41379.268000000004,-41379.268000000004,0,51205.735999999997,-51205.735999999997,{"$f":"SUM(K7:K9)","v":0},49660,-49660]
[]
["NB: Afstem med somatikken"]

{"sheet":"Rapport","index":7,"n_rows":99,"n_cols":6,"rows_kept":99,"cut":false,"hidden":false,"merged":[]}
[]
[null,"Skema 1: Udgifter og indtægter på sygehusene/enhederne, eksklusiv omkostningssted 0001, Fælleskonto. (1.000 kr.)"]
[null,null,2023,2022,2021,2020]
[null,"Hovedart 1: Lønninger",1734987.1069900012,1690076,1609427.7855300014,1543132.8837599959]
[null,"Hovedart 2: Varekøb",35179.152890000012,39517,49798.346549999966,56595.44294999999]
[null,"Hovedart 4: Tjenesteydelser m.v. ",375707.45729000017,354534,325865.87059999938,299252.91925999976]
[null,"Hovedart 5: Tilskud og overførsler",3565.326,3038,3874.6179999999999,6.9999999999999973]
[null,"Hovedart 6: Finansudgifter",0,0,0,0]
[null,"Hovedart 7: Indtægter",-174557.93049,-154427,-148534.02610000002,-163653.2083999996]
[null,"Hovedart 8: Finansindtægter",0,0,0,0]
[null,"Hovedart 9: Interne udgifter og indtægter",173770.07638999994,159285,152538.34799000013,140494.73108999993]
[null,"I alt",2148651.1890700012,2092023,1992970.9425700007,1875829.7686599961]
[]
[null,"Skema 2: Fællesudgifter og -indtægter vedrørende sygehusene.\n(1.000 kr.)"]
[null,null,2023,2022,2021,2020]
[null,"Hovedart 1: Lønninger",55793.505394437554,50765.086846999999,40657.307984639512,45803.033999999956]
[null,"Hovedart 2: Varekøb",3882.8126774086472,6369.4579999999996,-2593.198250896136,7162.5779999999995]
[null,"Hovedart 4: Tjenesteydelser m.v. ",53165.256132090297,51979.729999000003,44479.731882063948,46924.144999999975]
[null,"Hovedart 5: Tilskud og overførsler",-70.857926305833629,0.82000000000000006,0,0]
[null,"Hovedart 6: Finansudgifter",0,0,0,0]
[null,"Hovedart 7: Indtægter",-11120.249059394695,-18532.168000000001,-8099.7562083334124,-5964.0709999999999]
[null,"Hovedart 8: Finansindtægter",0,0,0,0]
[null,"Hovedart 9: Interne udgifter og indtægter",-31619.835271294098,-21754.757000999998,-16285.434684290271,-23621.100000000009]
[null,"I alt",70030.631946941881,68828.169844999997,58158.650723183644,70304.585999999923]
[]
[null,"Skema 3:Regionale fællesudgifter og -indtægter. (1.000 kr.)"]
[null,null,2023,2022,2021,2020]
[null,"1.70.50: Andel af fællesudgifter",64469.229938935256,62235.184813,56705.20540666391,58121.866320000001]
[null,"1.60.40: Andel af central administration af sundhed (til og med 2019)",0,0,0,0]
[null,"1.60.41: Andel af øvrige udgifter og indtægter",0,0,0,0]
[null,"1.50.33: Andel af central administration af sundhed (ekskl. psykiatri)",0,0,0,0]
[null,"1.50.35: Administration af det psykiatriske område (kun central del)",0,0,0,0]
[null,"I alt",64469.229938935256,62235.184813,56705.20540666391,58121.866320000001]
[]
[null,"Skema 4: Udgifter og indtægter til og fra psykiatriske afdelinger konteret på somatiske sygehuse. (1.000 kr.)"]
[null,null,2023,2022,2021,2020]
[null,"Korrektion",0,0,0,0]
[null,"Lønudg. på psyk. afd.,somatiske sygehuse",0,0,0,0]
[null,"Øvrige udg. til psyk. afd.,somatiske sygehuse",0,0,0,0]
[null,"I alt",0,0,0,0]
[]
[null,"Skema 5: Leasing- og huslejeudgifter. (1.000 kr.)"]
[null,null,2023,2022,2021,2020]
[null,"Andre udgifter",0,0,0,0]
[null,"Leasing- og lejeudgifter",1519.6192299999998,1070.6147101699999,1678.5929999999998,2139.3989999999999]
[null,"Huslejeudgifter",44623.208769999997,40428.031689999996,38391.239000000001,38405.692920000001]
[null,"I alt",46142.828000000001,41498.646400170001,40069.832000000002,40545.091920000006]
[]
[null,"Skema 6: Udgifter til andet end patientbehandling. (1.000 kr.)"]
[null,null,2023,2022,2021,2020]
[null,"Skema 6.1: Center for voldsramte (Bispebjerg)",0,0,0,0]
[null,"Skema 6.2: Ventilatørbistand i hjemmet, respiratorpatienter",0,0,0,0]
[null,"Skema 6.3: Blodprøvetagning i eget hjem",0,0,0,0]
[null,"Skema 6.4: Psykinfo + pårørende",3293.9967200000001,2621.9169999999999,2688.625,2708.96]
[null,"Skema 6.5: Leveret udstyr til patienter i eget hjem, ilt og sonderemedier",0,0,0,0]
[null,"Skema 6.6: Montebello (Nordsjællands Hospitaler)",0,0,0,0]
[null,"Skema 6.7: Satspulje korrektioner mellem år",13715.092079999997,13849.418,-18086.584169999998,-13647.69918]
[null,"Skema 6.8: Klinisk farmakologisk rådgivning af praksissektoren",0,0,0,0]
[null,"Skema 6.9: Tandregulering ifm. operation",0,0,0,0]
[null,"Skema 6.10: Giftlinjen",0,0,0,0]
[null,"Skema 6.11: Tjenestemandspensioner",17149.116969999999,15986.215,15743.106,16067.105160000001]
[null,"Skema 6.12: Art 4.6 Betalinger til staten",0,0,0,0]
[null,"Skema 6.13: Art 4.7 Betalinger til kommuner",442.47800000000001,479,479,479]
[null,"Skema 6.14: Art 4.8 Betalinger til andre regioner",37446.639259999996,38478.656000000003,37474.069430000003,36069.965430000011]
[null,"Skema 6.15: Art 7.6 Betalinger fra staten",-35790.213000000003,-27555.781999999999,-18610.081289999998,-34844.332589999998]
[null,"Skema 6.16: Art 7.7 Betalinger fra kommuner",-36865.947079999998,-43835.683999999994,-40106.568070000001,-45944.039999999994]
[null,"Skema 6.17: Art 7.8 Betalinger fra andre regioner",-85105.165999999997,-51181.815999999999,-53463.658679999993,-49884.207999999999]
[null,"Skema 6.18: Betalinger til selvejende, private og udenlandske sygehuse",1260.9549099999999,1353.37,138.08000000000001,1085.7000600000001]
[null,"Skema 6.19: Dækningsafgift/ejendomsskat",1839.54521,1872.9370000000001,1841.51073,1765.4464899999998]
[null,"Skema 6.20: Forsikringer/erstatninger",13528.035529999999,12110.675999999999,9599.425580000001,5526.3869999999997]
[null,"Skema 6.21: Vederlagsfri Lab. –ydelser og andre ydelser til praksissektoren",0,0,0,0]
[null,"Skema 6.22: Patienttransport",20.98142,43.991999999999997,179.012,117.90790000000001]
[null,"Skema 6.23: Serviceydelser til/fra andre institutioner eller sygehuse udenfor regionen",0,0,0,0]
[null,"Skema 6.24: Udgifter til eksternt finansierede forskning",0,0,0,0]
[null,"Skema 6.25: Forebyggelse rettet mod praksissektoren og kommuner",0,0,0,0]
[null,"Skema 6.26: Praksisreservelæger",0,0,0,0]
[null,"Skema 6.27: Præhospital",0,0,0,0]
[null,"Skema 6.28: Udgifter til Danske Regioner (Kontigent, MedCom, Fællesproj.)",3409.8359799999998,3416.741,3428.3,4141.2064199999995]
[null,"Skema 6.29: Hospice",0,0,0,0]
[null,"Skema 6.30: Konsulenter(praksis)",1793.4943499999999,1834.6780000000001,397.642,345.149]
[null,"Skema 6.31: Videnskabsetisk Komité",0,0,0,0]
[null,"Skema 6.32: Tolkebistand",1797.7856399999998,1704.4010000000001,2384.9449999999997,2841.3240400000004]
[null,"Skema 6.33: Dansk Center for Partikelterapi",0,0,0,0]
[null,"Skema 6.34: Politisk organisation – overførte udgifter fra funktion 4.10.01, 4.10.02 og 4.10.04",1349.58971,1337.3589999999999,1367.069,1139.14257]
[null,"Skema 6.35: Øvrige udgifter, Region Sjælland",0,0,0,0]
[null,"Skema 6.36: Sundhedsydelser ifm. specialsektor",0,0,0,0]
[null,"Skema 6.37: Udgifter til primær sundhed fra skema 2",0,0,0,0]
[null,"Skema 6.38: Udgifter til primær sundhed fra skema 3",0,0,0,0]
[null,"Skema 6.39: Særlige udgifter ifm. COVID-19",0,174.22900000000001,689.78408000000002,4160]
[null,"Skema 6.40: Udleveret udstyr/tilbehør ifm. cochlear implantater",0,0,0,0]
[null,"Skema 6.41: Luxturna-behandling, Rigshospitalet",0,0,0,0]
[null,"Skema 6.42: Udleveret medicin",0,0,0,0]
[null,"Skema 6.43: Udgifter ifm. sundhedsklynger",0,0,0,0]
[null,"Skema 6.44: Ukrainske patienter under særlov eller asyl",0,0,0,0]
[null,"Skema 6.45: Udgifter ifm. de særlige pladser i psykiatrien",28989.164013750014,0,0,0]
[null,"Skema 6.46: Sikringsafdelingen, Region Sjælland",0,0,0,0]
[null,"Skema 6.47: Øvrige (Kan kun benyttes efter aftale med Sundhedsdatastyrelsen)",0,0,0,0]
[null,"Lukkede poster (må kun bruges af Sundhedsdatastyrelsen)",0,0,0,0]
[null,"I alt",-31724.616286249999,-27309.692999999992,-53856.323389999983,-67872.98569999999]

{"sheet":"Rapport SGH","index":8,"n_rows":9,"n_cols":9,"rows_kept":9,"cut":false,"hidden":false,"merged":[]}
[2023,"Skema 1","Skema 2","Skema 3","Skema 4","Skema 5","Skema 6","Skema 7","I alt"]
["Region Midt, Voksen psykiatrien",1821074.7043086176,58670.997131778,36228.258732262038,0,41131.122466923967,-22367.28908130608,-35081.649128102988,{"$f":"SUM(B2:D2)-SUM(E2:H2)","v":1932291.7759151426}]
["Region Midt, Børn-unge psykiatrien",352588.92167138361,11359.634815163881,7014.3650066732243,0,9.9521230760354449,-569.3229349439182,-6792.3632167675323,{"$f":"SUM(B3:D3)-SUM(E3:H3)","v":378314.6555218561}]
["Ikke fordelte udgifter i Region Midt, psykiatri",-25012.436910000011,0,21226.606199999998,0,5001.7534100000003,-8788.0042700000013,0,0.42014999998809799]
[]
[2022]
["Region Midt, Voksen psykiatrien",1745776,57439.171825017998,35337.645499999999,0,37013.973899999997,-38938.807000000001,-34532.211000000003,{"$f":"SUM(B7:D7)-SUM(E7:H7)","v":1875009.8614250182}]
["Region Midt, Børn-unge psykiatrien",346153,11388.998019982002,7006.7586229999997,0,195.03692016999997,-4066.1850000000009,-6847.0569999999998,375266.96172281203]
["Ikke fordelte udgifter i Region Midt, psykiatri",94,0,19890.78069,0,4289.6355800000001,15695.299000000005,0,-0.15389000000504893]

{"sheet":"Afstemning af ikke fordelte","index":9,"n_rows":9,"n_cols":2,"rows_kept":9,"cut":false,"hidden":false,"merged":[]}
["Afstemning af Ikke fordelte indtægter- og udgifter"]
["1.000 kr.","2023"]
["Skema 1",-25012.436910000011]
["Skema 2",0]
["Skema 3",21226.606199999998]
["Skema 4",0]
["Skema 5",5001.7534100000003]
["Skema 6",-8788.0042700000013]
["1+2+3-4-5-6",{"$f":"+B3+B4+B5-B6-B7-B8","v":0.42014999998718849}]